[Event "*** Titled Tuesday Blitz"]
[Site "Chess.com"]
[Date "2021.03.02"]
[Round "7"]
[White "Aslanov_Umid"]
[Black "tusplingher"]
[Result "0-1"]
[WhiteElo "2391"]
[BlackElo "2270"]
[TimeControl "180+1"]
[EndTime "11:18:29 PST"]
[Termination "tusplingher won by resignation"]

1. e4 {[%clk 0:03:00.9]} 1... c5 {[%clk 0:02:59.5]} 2. Nf3 {[%clk 0:03:00.8]}
2... g6 {[%clk 0:02:58.4]} 3. d4 {[%clk 0:03:01.3]} 3... cxd4 {[%clk 0:02:58.2]}
4. Nxd4 {[%clk 0:03:02.2]} 4... Bg7 {[%clk 0:02:57.4]} 5. c4 {[%clk 0:03:02]}
5... Nc6 {[%clk 0:02:57.1]} 6. Be3 {[%clk 0:03:02.3]} 6... Nf6 {[%clk
0:02:56.8]} 7. Nc3 {[%clk 0:03:01.5]} 7... O-O {[%clk 0:02:56.5]} 8. Be2 {[%clk
0:03:00]} 8... d6 {[%clk 0:02:55.2]} 9. O-O {[%clk 0:03:00]} 9... Nxd4 {[%clk
0:02:55.3]} 10. Bxd4 {[%clk 0:02:59.8]} 10... Bd7 {[%clk 0:02:56.2]} 11. f4
{[%clk 0:02:57.4]} 11... Bc6 {[%clk 0:02:55.4]} 12. e5 {[%clk 0:02:53.3]} 12...
dxe5 {[%clk 0:02:53.5]} 13. fxe5 {[%clk 0:02:54.2]} 13... Nd7 {[%clk 0:02:53.3]}
14. e6 {[%clk 0:02:53.5]} 14... fxe6 {[%clk 0:02:49.5]} 15. Bxg7 {[%clk
0:02:52.1]} 15... Kxg7 {[%clk 0:02:49.2]} 16. Bg4 {[%clk 0:02:51.1]} 16... Rxf1+
{[%clk 0:02:36.7]} 17. Qxf1 {[%clk 0:02:52]} 17... Nf6 {[%clk 0:02:34]} 18. Bxe6
{[%clk 0:02:50.7]} 18... Qd2 {[%clk 0:02:33.4]} 19. Qf2 {[%clk 0:02:45.1]} 19...
Rd8 {[%clk 0:02:29.9]} 20. Rd1 {[%clk 0:02:36.2]} 20... Qxd1+ {[%clk 0:02:26.2]}
21. Nxd1 {[%clk 0:02:31.8]} 21... Rxd1+ {[%clk 0:02:26.2]} 22. Qf1 {[%clk
0:02:32.7]} 22... Rxf1+ {[%clk 0:02:26.3]} 23. Kxf1 {[%clk 0:02:33.6]} 23... Ne4
{[%clk 0:02:25.7]} 24. Ke2 {[%clk 0:02:32.7]} 24... Kf6 {[%clk 0:02:24.7]} 25.
Bg4 {[%clk 0:02:33]} 25... Nd6 {[%clk 0:02:14.5]} 26. c5 {[%clk 0:02:31.2]}
26... Nc4 {[%clk 0:02:14]} 27. b4 {[%clk 0:02:27.8]} 27... Ne5 {[%clk
0:02:12.7]} 28. Bc8 {[%clk 0:02:26.1]} 28... Bxg2 {[%clk 0:02:12]} 29. b5 {[%clk
0:02:25.4]} 29... Bd5 {[%clk 0:02:01.4]} 30. a4 {[%clk 0:02:24.2]} 30... Kf7
{[%clk 0:01:55.6]} 31. Ke3 {[%clk 0:02:22]} 31... Ng4+ {[%clk 0:01:50.4]} 32.
Kd4 {[%clk 0:02:21.3]} 32... Be6 {[%clk 0:01:49.4]} 33. Bxb7 {[%clk 0:02:20.7]}
33... Ke8 {[%clk 0:01:48.8]} 34. b6 {[%clk 0:02:17.5]} 34... axb6 {[%clk
0:01:44]} 35. cxb6 {[%clk 0:02:18.4]} 35... Kd8 {[%clk 0:01:35.7]} 36. a5 {[%clk
0:02:17.3]} 36... Bc8 {[%clk 0:01:35]} 37. a6 {[%clk 0:02:15.9]} 37... Nf6
{[%clk 0:01:29.3]} 38. Bxc8 {[%clk 0:02:04.5]} 38... Kxc8 {[%clk 0:01:28.7]} 39.
Ke5 {[%clk 0:02:05.4]} 39... h5 {[%clk 0:01:10]} 40. Ke6 {[%clk 0:01:59.6]}
40... h4 {[%clk 0:01:00]} 41. Kxe7 {[%clk 0:01:48.4]} 41... g5 {[%clk
0:00:54.5]} 42. Kd6 {[%clk 0:01:45.8]} 42... Kb8 {[%clk 0:00:41.2]} 43. Ke5
{[%clk 0:00:57.9]} 43... g4 {[%clk 0:00:28.1]} 44. Kf4 {[%clk 0:00:56.1]} 44...
g3 {[%clk 0:00:25.4]} 45. hxg3 {[%clk 0:00:51.8]} 45... h3 {[%clk 0:00:25.3]}
46. Kf3 {[%clk 0:00:51.1]} 46... Ng4 {[%clk 0:00:25.2]} 0-1

[Event "*** Titled Tuesday Blitz"]
[Site "Chess.com"]
[Date "2021.03.02"]
[Round "7"]
[White "ehrenfeld"]
[Black "annamaja"]
[Result "0-1"]
[WhiteElo "2487"]
[BlackElo "2384"]
[TimeControl "180+1"]
[EndTime "11:18:31 PST"]
[Termination "annamaja won on time"]

1. e4 {[%clk 0:03:00.9]} 1... e6 {[%clk 0:02:59]} 2. d4 {[%clk 0:03:00.2]} 2...
d5 {[%clk 0:02:59]} 3. e5 {[%clk 0:03:00.4]} 3... c5 {[%clk 0:02:58.9]} 4. c3
{[%clk 0:03:00.6]} 4... Nc6 {[%clk 0:02:59.3]} 5. Nf3 {[%clk 0:03:00.7]} 5...
Qb6 {[%clk 0:02:59]} 6. a3 {[%clk 0:03:00]} 6... Nh6 {[%clk 0:02:54.4]} 7. Bd3
{[%clk 0:02:46.7]} 7... Bd7 {[%clk 0:02:41.4]} 8. O-O {[%clk 0:02:41.4]} 8...
cxd4 {[%clk 0:02:40]} 9. b4 {[%clk 0:02:39.7]} 9... Nf5 {[%clk 0:02:28.3]} 10.
Ra2 {[%clk 0:02:32.5]} 10... Be7 {[%clk 0:02:19.4]} 11. Rc2 {[%clk 0:02:04.5]}
11... O-O {[%clk 0:02:13.7]} 12. Bxf5 {[%clk 0:01:47.6]} 12... exf5 {[%clk
0:02:13.4]} 13. cxd4 {[%clk 0:01:47.5]} 13... a5 {[%clk 0:02:01.9]} 14. Nc3
{[%clk 0:01:45.5]} 14... Be6 {[%clk 0:01:53.6]} 15. b5 {[%clk 0:01:41.3]} 15...
Na7 {[%clk 0:01:52.5]} 16. a4 {[%clk 0:01:35]} 16... Rac8 {[%clk 0:01:52.7]} 17.
Bg5 {[%clk 0:01:28.4]} 17... Bxg5 {[%clk 0:01:28.5]} 18. Nxg5 {[%clk 0:01:27.7]}
18... Rc4 {[%clk 0:01:29.1]} 19. Nf3 {[%clk 0:00:44.8]} 19... Rfc8 {[%clk
0:01:26.1]} 20. Qa1 {[%clk 0:00:42.9]} 20... Qc7 {[%clk 0:01:07.2]} 21. Rfc1
{[%clk 0:00:41.7]} 21... h6 {[%clk 0:00:56.5]} 22. Nd2 {[%clk 0:00:36.5]} 22...
Rxd4 {[%clk 0:00:40.6]} 23. Nxd5 {[%clk 0:00:09.5]} 23... Qxe5 {[%clk
0:00:11.6]} 24. Rxc8+ {[%clk 0:00:06.7]} 24... Nxc8 {[%clk 0:00:10]} 25. Nf3
{[%clk 0:00:06.3]} 25... Qxd5 {[%clk 0:00:07.1]} 26. Qxd4 {[%clk 0:00:05.8]}
26... Qb3 {[%clk 0:00:05.9]} 27. h4 {[%clk 0:00:04.9]} 27... Kh7 {[%clk
0:00:05.9]} 28. h5 {[%clk 0:00:02.1]} 28... Qa3 {[%clk 0:00:06.5]} 0-1

[Event "*** Titled Tuesday Blitz"]
[Site "Chess.com"]
[Date "2021.03.02"]
[Round "7"]
[White "Xeniya2005"]
[Black "TimKett"]
[Result "1-0"]
[WhiteElo "2354"]
[BlackElo "2183"]
[TimeControl "180+1"]
[EndTime "11:18:32 PST"]
[Termination "Xeniya2005 won on time"]

1. e4 {[%clk 0:03:00.9]} 1... e5 {[%clk 0:02:59]} 2. Nf3 {[%clk 0:02:58.3]} 2...
Nc6 {[%clk 0:02:58.5]} 3. Nc3 {[%clk 0:02:57.6]} 3... Nf6 {[%clk 0:02:57.8]} 4.
Bb5 {[%clk 0:02:57.2]} 4... Nd4 {[%clk 0:02:56.4]} 5. Bc4 {[%clk 0:02:52.8]}
5... Bc5 {[%clk 0:02:48.2]} 6. Nxe5 {[%clk 0:02:48.7]} 6... O-O {[%clk
0:02:47.7]} 7. Nd3 {[%clk 0:02:33]} 7... Bb6 {[%clk 0:02:46.6]} 8. h3 {[%clk
0:02:26.2]} 8... c6 {[%clk 0:02:18.8]} 9. e5 {[%clk 0:02:05.1]} 9... d5 {[%clk
0:02:14.9]} 10. Bb3 {[%clk 0:01:56.9]} 10... Ne4 {[%clk 0:01:53.5]} 11. Nxe4
{[%clk 0:01:36.6]} 11... dxe4 {[%clk 0:01:53.3]} 12. Nf4 {[%clk 0:01:35.4]}
12... Qg5 {[%clk 0:01:52.5]} 13. d3 {[%clk 0:01:30.6]} 13... Qxe5 {[%clk
0:01:50.5]} 14. O-O {[%clk 0:01:24]} 14... Bf5 {[%clk 0:01:43.9]} 15. Re1 {[%clk
0:01:15]} 15... Rad8 {[%clk 0:01:38.6]} 16. Qh5 {[%clk 0:01:02.4]} 16... g6
{[%clk 0:01:37.3]} 17. Qh6 {[%clk 0:01:00.4]} 17... Nxb3 {[%clk 0:00:53]} 18.
axb3 {[%clk 0:00:55]} 18... Qc5 {[%clk 0:00:39.3]} 19. Be3 {[%clk 0:00:43.5]}
19... Qxc2 {[%clk 0:00:39]} 20. Bxb6 {[%clk 0:00:42.3]} 20... axb6 {[%clk
0:00:38.1]} 21. dxe4 {[%clk 0:00:41.5]} 21... Bxe4 {[%clk 0:00:35]} 22. Re3
{[%clk 0:00:30]} 22... Qxb2 {[%clk 0:00:33]} 23. Rae1 {[%clk 0:00:27.4]} 23...
Bd5 {[%clk 0:00:28]} 24. Rg3 {[%clk 0:00:12]} 24... Qg7 {[%clk 0:00:26.9]} 25.
Qg5 {[%clk 0:00:11.9]} 25... Rfe8 {[%clk 0:00:21.8]} 26. Rxe8+ {[%clk
0:00:09.9]} 26... Rxe8 {[%clk 0:00:21.8]} 27. Nh5 {[%clk 0:00:09.3]} 27... Qa1+
{[%clk 0:00:20]} 28. Kh2 {[%clk 0:00:09.5]} 28... Kf8 {[%clk 0:00:03]} 29. Qh6+
{[%clk 0:00:09.1]} 29... Kg8 {[%clk 0:00:01.3]} 30. Qg5 {[%clk 0:00:06.7]} 1-0

[Event "*** Titled Tuesday Blitz"]
[Site "Chess.com"]
[Date "2021.03.02"]
[Round "7"]
[White "northridgehawk"]
[Black "enriquebutti"]
[Result "0-1"]
[WhiteElo "2334"]
[BlackElo "2185"]
[TimeControl "180+1"]
[EndTime "11:18:32 PST"]
[Termination "enriquebutti won by resignation"]

1. e4 {[%clk 0:03:00.9]} 1... c5 {[%clk 0:02:59.4]} 2. Nf3 {[%clk 0:02:49.7]}
2... d6 {[%clk 0:02:59]} 3. d4 {[%clk 0:02:49.2]} 3... cxd4 {[%clk 0:02:58.6]}
4. Nxd4 {[%clk 0:02:30.8]} 4... Nf6 {[%clk 0:02:57.8]} 5. Nc3 {[%clk 0:02:30.5]}
5... a6 {[%clk 0:02:57.4]} 6. h3 {[%clk 0:02:30.3]} 6... e6 {[%clk 0:02:56.3]}
7. g4 {[%clk 0:02:23.6]} 7... h6 {[%clk 0:02:55.6]} 8. Bg2 {[%clk 0:02:14.9]}
8... g5 {[%clk 0:02:53.7]} 9. O-O {[%clk 0:02:13.6]} 9... Nbd7 {[%clk
0:02:52.8]} 10. Be3 {[%clk 0:01:57.1]} 10... Ne5 {[%clk 0:02:51.9]} 11. Qe2
{[%clk 0:01:55.7]} 11... Bd7 {[%clk 0:02:32.3]} 12. f4 {[%clk 0:01:37.1]} 12...
gxf4 {[%clk 0:02:31.6]} 13. Bxf4 {[%clk 0:01:37.7]} 13... Rc8 {[%clk 0:02:30.8]}
14. Kh1 {[%clk 0:01:36.1]} 14... Be7 {[%clk 0:02:21.7]} 15. Rad1 {[%clk
0:01:31]} 15... Qb6 {[%clk 0:02:09]} 16. Nb3 {[%clk 0:01:23.8]} 16... Qc7 {[%clk
0:02:00]} 17. Bg3 {[%clk 0:01:06.5]} 17... Qb8 {[%clk 0:01:54.5]} 18. Bh4 {[%clk
0:01:05.6]} 18... Ng8 {[%clk 0:01:41.2]} 19. Bxe7 {[%clk 0:01:04.7]} 19... Nxe7
{[%clk 0:01:40.7]} 20. Qf2 {[%clk 0:00:59.8]} 20... N7g6 {[%clk 0:01:33.3]} 21.
Ne2 {[%clk 0:00:47.4]} 21... Rxc2 {[%clk 0:01:31.9]} 22. Qe3 {[%clk 0:00:40.8]}
22... Nh4 {[%clk 0:01:24.1]} 23. Rf2 {[%clk 0:00:38.6]} 23... h5 {[%clk
0:01:17.9]} 24. g5 {[%clk 0:00:37.1]} 24... Nxg2 {[%clk 0:01:16.8]} 25. Rxg2
{[%clk 0:00:38]} 25... Rxb2 {[%clk 0:01:15.2]} 26. Qd4 {[%clk 0:00:18.7]} 26...
Rxa2 {[%clk 0:01:09.8]} 27. Qxd6 {[%clk 0:00:15.8]} 27... Qxd6 {[%clk
0:01:09.3]} 28. Rxd6 {[%clk 0:00:16.7]} 28... Ke7 {[%clk 0:01:07.9]} 29. Rd4
{[%clk 0:00:15.6]} 29... Rc8 {[%clk 0:01:04.8]} 30. Nd2 {[%clk 0:00:14.2]} 30...
Rcc2 {[%clk 0:01:01.6]} 31. Nf4 {[%clk 0:00:13.1]} 31... h4 {[%clk 0:00:55.6]}
32. Kh2 {[%clk 0:00:12.9]} 32... Bc6 {[%clk 0:00:53.5]} 33. g6 {[%clk
0:00:11.7]} 33... Rxd2 {[%clk 0:00:48.7]} 34. Rgxd2 {[%clk 0:00:09]} 34... Rxd2+
{[%clk 0:00:48.1]} 35. Rxd2 {[%clk 0:00:07.7]} 35... Nf3+ {[%clk 0:00:47.9]} 36.
Kg2 {[%clk 0:00:07.8]} 36... Nxd2 {[%clk 0:00:46.3]} 37. g7 {[%clk 0:00:07.7]}
37... Bxe4+ {[%clk 0:00:45]} 38. Kf2 {[%clk 0:00:06.3]} 38... Bh7 {[%clk
0:00:44.1]} 39. g8=Q {[%clk 0:00:06.6]} 39... Bxg8 {[%clk 0:00:42.2]} 40. Ke3
{[%clk 0:00:07.5]} 40... Nc4+ {[%clk 0:00:41.7]} 41. Kd4 {[%clk 0:00:06.6]}
41... e5+ {[%clk 0:00:41.6]} 42. Kxc4 {[%clk 0:00:05.4]} 42... exf4 {[%clk
0:00:40.5]} 0-1

[Event "*** Titled Tuesday Blitz"]
[Site "Chess.com"]
[Date "2021.03.02"]
[Round "7"]
[White "GM_Crest"]
[Black "NicoChasin"]
[Result "1-0"]
[WhiteElo "2776"]
[BlackElo "2567"]
[TimeControl "180+1"]
[EndTime "11:18:33 PST"]
[Termination "GM_Crest won by resignation"]

1. d4 {[%clk 0:03:00.9]} 1... Nf6 {[%clk 0:02:59.8]} 2. c4 {[%clk 0:02:59.9]}
2... c6 {[%clk 0:03:00.2]} 3. Nc3 {[%clk 0:02:58.9]} 3... d5 {[%clk 0:03:00.8]}
4. Nf3 {[%clk 0:02:59.3]} 4... Bf5 {[%clk 0:03:01.3]} 5. cxd5 {[%clk 0:02:58.7]}
5... Nxd5 {[%clk 0:02:56.7]} 6. g3 {[%clk 0:02:58.7]} 6... e6 {[%clk 0:02:55.8]}
7. Bg2 {[%clk 0:02:58.2]} 7... Nd7 {[%clk 0:02:52.8]} 8. O-O {[%clk 0:02:58]}
8... Bd6 {[%clk 0:02:53]} 9. Re1 {[%clk 0:02:55.1]} 9... Nxc3 {[%clk 0:02:49.9]}
10. bxc3 {[%clk 0:02:54.9]} 10... Be4 {[%clk 0:02:50.5]} 11. Bf1 {[%clk
0:02:52.5]} 11... O-O {[%clk 0:02:49.5]} 12. Nd2 {[%clk 0:02:52.7]} 12... Bg6
{[%clk 0:02:49.6]} 13. e4 {[%clk 0:02:53]} 13... e5 {[%clk 0:02:50.1]} 14. Nc4
{[%clk 0:02:53.2]} 14... Bc7 {[%clk 0:02:50]} 15. Ba3 {[%clk 0:02:53.5]} 15...
Re8 {[%clk 0:02:49.9]} 16. Bg2 {[%clk 0:02:51.7]} 16... exd4 {[%clk 0:02:47.8]}
17. cxd4 {[%clk 0:02:51.2]} 17... Nb6 {[%clk 0:02:47.3]} 18. Na5 {[%clk
0:02:46.6]} 18... Rb8 {[%clk 0:02:47]} 19. h4 {[%clk 0:02:38]} 19... f6 {[%clk
0:02:28.8]} 20. h5 {[%clk 0:02:32.8]} 20... Bf7 {[%clk 0:02:28.9]} 21. h6 {[%clk
0:02:33.3]} 21... g6 {[%clk 0:02:28.2]} 22. Bb2 {[%clk 0:02:21.5]} 22... Qd7
{[%clk 0:02:16]} 23. Qc2 {[%clk 0:02:18.7]} 23... Nc8 {[%clk 0:02:06.7]} 24. Nb3
{[%clk 0:02:17.4]} 24... Nd6 {[%clk 0:02:06.3]} 25. Nc5 {[%clk 0:02:14.3]} 25...
Qg4 {[%clk 0:02:05.3]} 26. e5 {[%clk 0:02:05.6]} 26... fxe5 {[%clk 0:01:55.5]}
27. dxe5 {[%clk 0:02:05.4]} 27... Qc4 {[%clk 0:01:55]} 28. Rac1 {[%clk
0:01:17.7]} 28... Qxc2 {[%clk 0:01:34.6]} 29. Rxc2 {[%clk 0:01:18.6]} 29... Re7
{[%clk 0:01:16.2]} 30. e6 {[%clk 0:01:11]} 30... Be8 {[%clk 0:00:38.4]} 31. Bf6
{[%clk 0:01:10.8]} 31... Nf5 {[%clk 0:00:37.5]} 32. Bxe7 {[%clk 0:01:02.1]}
32... Nxe7 {[%clk 0:00:37.2]} 33. Nd7 {[%clk 0:01:02.8]} 33... Bxd7 {[%clk
0:00:34]} 34. exd7 {[%clk 0:01:02.5]} 34... Kf8 {[%clk 0:00:34.5]} 35. Rce2
{[%clk 0:00:54.6]} 35... Bd6 {[%clk 0:00:31.8]} 36. Re6 {[%clk 0:00:53.5]} 36...
Bb4 {[%clk 0:00:29.1]} 37. Rf6+ {[%clk 0:00:52.7]} 37... Kg8 {[%clk 0:00:28.9]}
38. Re4 {[%clk 0:00:52.8]} 38... a5 {[%clk 0:00:25.4]} 39. Bh3 {[%clk
0:00:50.9]} 39... Rd8 {[%clk 0:00:20.4]} 40. g4 {[%clk 0:00:37.4]} 40... g5
{[%clk 0:00:13.9]} 41. Re5 {[%clk 0:00:34.6]} 41... Rxd7 {[%clk 0:00:13]} 42.
Rxg5+ {[%clk 0:00:34.5]} 42... Ng6 {[%clk 0:00:13.7]} 43. Rgxg6+ {[%clk
0:00:32.4]} 43... hxg6 {[%clk 0:00:13.3]} 44. g5 {[%clk 0:00:32.9]} 44... Rd1+
{[%clk 0:00:12.8]} 45. Kg2 {[%clk 0:00:32.5]} 45... Be7 {[%clk 0:00:12.6]} 46.
Rxg6+ {[%clk 0:00:31.3]} 46... Kf8 {[%clk 0:00:13.1]} 47. h7 {[%clk 0:00:30.8]}
1-0

[Event "*** Titled Tuesday Blitz"]
[Site "Chess.com"]
[Date "2021.03.02"]
[Round "7"]
[White "TST2014"]
[Black "profofchess"]
[Result "1-0"]
[WhiteElo "2634"]
[BlackElo "2477"]
[TimeControl "180+1"]
[EndTime "11:18:33 PST"]
[Termination "TST2014 won by checkmate"]

1. d4 {[%clk 0:03:00.9]} 1... Nf6 {[%clk 0:02:59.7]} 2. c4 {[%clk 0:03:00.2]}
2... e6 {[%clk 0:02:59.3]} 3. Nf3 {[%clk 0:03:00.1]} 3... c5 {[%clk 0:02:58.7]}
4. e3 {[%clk 0:02:59.2]} 4... b6 {[%clk 0:02:56.8]} 5. Nc3 {[%clk 0:02:58.1]}
5... g6 {[%clk 0:02:57.1]} 6. d5 {[%clk 0:02:53]} 6... exd5 {[%clk 0:02:54.1]}
7. cxd5 {[%clk 0:02:52.9]} 7... d6 {[%clk 0:02:50.4]} 8. h3 {[%clk 0:02:44.6]}
8... Bg7 {[%clk 0:02:49.1]} 9. Be2 {[%clk 0:02:41.2]} 9... O-O {[%clk
0:02:48.3]} 10. e4 {[%clk 0:02:38.8]} 10... Re8 {[%clk 0:02:38]} 11. Nd2 {[%clk
0:02:37.8]} 11... Na6 {[%clk 0:02:25.6]} 12. O-O {[%clk 0:02:36]} 12... Nc7
{[%clk 0:02:25.6]} 13. a4 {[%clk 0:02:23.1]} 13... a6 {[%clk 0:02:21.1]} 14. Bd3
{[%clk 0:02:10.6]} 14... Rb8 {[%clk 0:02:15.5]} 15. Nc4 {[%clk 0:02:10.5]} 15...
b5 {[%clk 0:02:03.7]} 16. axb5 {[%clk 0:02:09.9]} 16... axb5 {[%clk 0:02:04.2]}
17. Na5 {[%clk 0:02:10.4]} 17... Bd7 {[%clk 0:02:04.5]} 18. Bf4 {[%clk
0:02:03.5]} 18... b4 {[%clk 0:02:01.4]} 19. Na4 {[%clk 0:01:52.1]} 19... Nxe4
{[%clk 0:01:47.4]} 20. Nc6 {[%clk 0:01:42.5]} 20... Bxc6 {[%clk 0:01:44.5]} 21.
dxc6 {[%clk 0:01:43.4]} 21... Ne6 {[%clk 0:01:23.7]} 22. Bh2 {[%clk 0:01:29.7]}
22... Nd4 {[%clk 0:01:06.9]} 23. Bxe4 {[%clk 0:01:24.1]} 23... Rxe4 {[%clk
0:01:05.8]} 24. Nxc5 {[%clk 0:01:24.1]} 24... Re8 {[%clk 0:00:52.5]} 25. Nb7
{[%clk 0:01:08.3]} 25... Qb6 {[%clk 0:00:44.5]} 26. Nxd6 {[%clk 0:01:00.3]}
26... Red8 {[%clk 0:00:27.7]} 27. Nc4 {[%clk 0:00:58.1]} 27... Qxc6 {[%clk
0:00:22.9]} 28. Bxb8 {[%clk 0:00:51.5]} 28... Qxc4 {[%clk 0:00:23]} 29. Ra8
{[%clk 0:00:30.8]} 29... Ne2+ {[%clk 0:00:23]} 30. Kh1 {[%clk 0:00:30.6]} 30...
Rxd1 {[%clk 0:00:21.4]} 31. Bd6+ {[%clk 0:00:28.4]} 31... Bf8 {[%clk 0:00:21.2]}
32. Rxf8+ {[%clk 0:00:29]} 32... Kg7 {[%clk 0:00:21.5]} 33. Rxd1 {[%clk
0:00:29.6]} 33... Qc2 {[%clk 0:00:15.5]} 34. Rf1 {[%clk 0:00:23.7]} 34... Qd2
{[%clk 0:00:10.2]} 35. Rd8 {[%clk 0:00:23.4]} 35... Qxb2 {[%clk 0:00:09.2]} 36.
Re1 {[%clk 0:00:22.5]} 36... b3 {[%clk 0:00:07]} 37. Bf8+ {[%clk 0:00:21.6]}
37... Kf6 {[%clk 0:00:06.5]} 38. Bh6 {[%clk 0:00:21.7]} 38... Nc3 {[%clk
0:00:03.8]} 39. Rd6+ {[%clk 0:00:21.5]} 39... Kf5 {[%clk 0:00:03.3]} 40. g4#
{[%clk 0:00:21.9]} 1-0

[Event "*** Titled Tuesday Blitz"]
[Site "Chess.com"]
[Date "2021.03.02"]
[Round "7"]
[White "Diamantidis_13"]
[Black "HouseOfDurin"]
[Result "1-0"]
[WhiteElo "2438"]
[BlackElo "2186"]
[TimeControl "180+1"]
[EndTime "11:18:33 PST"]
[Termination "Diamantidis_13 won on time"]

1. d4 {[%clk 0:03:00.9]} 1... Nf6 {[%clk 0:02:58.5]} 2. c4 {[%clk 0:03:00.7]}
2... c5 {[%clk 0:02:59]} 3. d5 {[%clk 0:02:59.8]} 3... b5 {[%clk 0:02:59.2]} 4.
Bg5 {[%clk 0:02:57.6]} 4... Ne4 {[%clk 0:02:54.1]} 5. Nd2 {[%clk 0:02:57.5]}
5... Nxg5 {[%clk 0:02:50.6]} 6. h4 {[%clk 0:02:57.4]} 6... Ne6 {[%clk
0:02:20.6]} 7. dxe6 {[%clk 0:02:55.2]} 7... dxe6 {[%clk 0:02:21.5]} 8. cxb5
{[%clk 0:02:54.5]} 8... Qa5 {[%clk 0:02:10.1]} 9. e4 {[%clk 0:02:39.4]} 9... a6
{[%clk 0:02:03.6]} 10. b6 {[%clk 0:02:33.7]} 10... Bb7 {[%clk 0:01:55.8]} 11.
Rh3 {[%clk 0:02:18.8]} 11... g6 {[%clk 0:01:32.9]} 12. Qc2 {[%clk 0:01:29.7]}
12... Bh6 {[%clk 0:01:19.9]} 13. Qc3 {[%clk 0:01:14.8]} 13... Bxd2+ {[%clk
0:01:17.2]} 14. Kxd2 {[%clk 0:01:08.3]} 14... Qxc3+ {[%clk 0:01:04]} 15. bxc3
{[%clk 0:01:02.1]} 15... Bxe4 {[%clk 0:01:03.4]} 16. a4 {[%clk 0:00:44.6]} 16...
a5 {[%clk 0:00:58.4]} 17. Re3 {[%clk 0:00:27.1]} 17... Bc6 {[%clk 0:00:56]} 18.
Rb1 {[%clk 0:00:20.1]} 18... O-O {[%clk 0:00:53.1]} 19. Bb5 {[%clk 0:00:17.7]}
19... Rd8+ {[%clk 0:00:41.9]} 20. Kc2 {[%clk 0:00:17.5]} 20... Bxg2 {[%clk
0:00:36.5]} 21. Ne2 {[%clk 0:00:15.9]} 21... Nd7 {[%clk 0:00:23.2]} 22. Nf4
{[%clk 0:00:14.1]} 22... Bb7 {[%clk 0:00:18.1]} 23. Bxd7 {[%clk 0:00:10]} 23...
Rxd7 {[%clk 0:00:19]} 24. Nd3 {[%clk 0:00:09.9]} 24... Rc8 {[%clk 0:00:14.1]}
25. Ne5 {[%clk 0:00:07.4]} 25... Rd6 {[%clk 0:00:12.1]} 26. Nc4 {[%clk
0:00:07.6]} 26... Rd7 {[%clk 0:00:03.4]} 27. Nxa5 {[%clk 0:00:07.5]} 27... Kg7
{[%clk 0:00:02.7]} 28. Nxb7 {[%clk 0:00:07.2]} 28... Rxb7 {[%clk 0:00:03.5]} 29.
a5 {[%clk 0:00:07.2]} 29... Ra8 {[%clk 0:00:02.5]} 30. Rb5 {[%clk 0:00:07.7]}
30... Ra6 {[%clk 0:00:02.8]} 31. Re5 {[%clk 0:00:07.4]} 31... Kf6 {[%clk
0:00:01.2]} 32. Rexc5 {[%clk 0:00:07.9]} 1-0

[Event "*** Titled Tuesday Blitz"]
[Site "Chess.com"]
[Date "2021.03.02"]
[Round "7"]
[White "MendozaDavid2000"]
[Black "bazar-wokzal"]
[Result "0-1"]
[WhiteElo "2336"]
[BlackElo "2517"]
[TimeControl "180+1"]
[EndTime "11:18:33 PST"]
[Termination "bazar-wokzal won on time"]

1. d4 {[%clk 0:03:00.9]} 1... Nf6 {[%clk 0:02:58.6]} 2. c4 {[%clk 0:03:00.8]}
2... Nc6 {[%clk 0:02:57.6]} 3. Nc3 {[%clk 0:02:55.6]} 3... e5 {[%clk 0:02:57.2]}
4. d5 {[%clk 0:02:53.1]} 4... Ne7 {[%clk 0:02:56.6]} 5. e4 {[%clk 0:02:53.6]}
5... Ng6 {[%clk 0:02:56.3]} 6. Nge2 {[%clk 0:02:54.5]} 6... Bc5 {[%clk
0:02:55.7]} 7. Ng3 {[%clk 0:02:53.3]} 7... d6 {[%clk 0:02:48.6]} 8. Na4 {[%clk
0:02:44.9]} 8... Bb4+ {[%clk 0:02:45.6]} 9. Bd2 {[%clk 0:02:45.3]} 9... a5
{[%clk 0:02:35.8]} 10. Bd3 {[%clk 0:02:40.1]} 10... Nf4 {[%clk 0:02:21.5]} 11.
Bxb4 {[%clk 0:02:02.7]} 11... axb4 {[%clk 0:02:17.8]} 12. Bf1 {[%clk 0:01:59.6]}
12... h5 {[%clk 0:02:12.7]} 13. b3 {[%clk 0:01:59.1]} 13... h4 {[%clk
0:01:59.5]} 14. Ne2 {[%clk 0:01:58.4]} 14... Nxe4 {[%clk 0:01:49.8]} 15. Nxf4
{[%clk 0:01:51.1]} 15... exf4 {[%clk 0:01:49.4]} 16. Bd3 {[%clk 0:01:51.2]}
16... Nc3 {[%clk 0:01:44.4]} 17. Nxc3 {[%clk 0:01:47.5]} 17... bxc3 {[%clk
0:01:43.2]} 18. O-O {[%clk 0:01:46.9]} 18... Qf6 {[%clk 0:01:38]} 19. Re1+
{[%clk 0:01:44.8]} 19... Kd8 {[%clk 0:01:37]} 20. a4 {[%clk 0:01:28]} 20... h3
{[%clk 0:01:30.9]} 21. g3 {[%clk 0:01:27.7]} 21... fxg3 {[%clk 0:01:27.2]} 22.
fxg3 {[%clk 0:01:25.4]} 22... Qd4+ {[%clk 0:01:24.2]} 23. Kf1 {[%clk 0:01:15.4]}
23... Bg4 {[%clk 0:01:22.6]} 24. Be2 {[%clk 0:01:14.1]} 24... Qe4 {[%clk
0:01:09.9]} 25. Kf2 {[%clk 0:00:37.3]} 25... Qg2+ {[%clk 0:01:00.2]} 26. Ke3
{[%clk 0:00:37.1]} 26... Re8+ {[%clk 0:00:57.2]} 27. Kd3 {[%clk 0:00:37.3]}
27... Qe4+ {[%clk 0:00:29.3]} 28. Kxc3 {[%clk 0:00:29.1]} 28... Bxe2 {[%clk
0:00:29.4]} 29. Qd2 {[%clk 0:00:24.5]} 29... Qf3+ {[%clk 0:00:27.6]} 30. Kb4
{[%clk 0:00:22.8]} 30... Re3 {[%clk 0:00:26.1]} 31. Rab1 {[%clk 0:00:14.1]}
31... Kd7 {[%clk 0:00:25.2]} 32. Rb2 {[%clk 0:00:13.3]} 32... Rae8 {[%clk
0:00:22.7]} 33. a5 {[%clk 0:00:11.4]} 33... c5+ {[%clk 0:00:22.1]} 34. dxc6+
{[%clk 0:00:10.8]} 34... bxc6 {[%clk 0:00:23]} 35. c5 {[%clk 0:00:07.2]} 35...
Rxb3+ {[%clk 0:00:21.3]} 36. Rxb3 {[%clk 0:00:05.9]} 36... Rb8+ {[%clk
0:00:21.6]} 0-1